Cogmind - Beta 14 @@@ ROGUE MODE // 2024.11.06 @ 19:37:33 Player: RB21 Result: Destroyed by L-31 Rogue with Katana Performance ------------- Evolutions (2) 1000 Regions Visited (6) 1200 Robots Destroyed (104) 520 Value Destroyed (3258) 3258 Prototype IDs (3) 60 Alien Tech Used (0) 0 Bonus (785) 785 TOTAL SCORE: 6823 Bonus ------- High Alert Combat Kills 585 Entered Garrisons 200 Cogmind --------- Core Integrity 0/550 Matter 48/300 Energy 160/160 System Corruption 0% Temperature Warm (168) Movement Core (500) Ox9 Location -8/Materials Parts ------- > --- POWER (2) -------- Light Nuclear Core > --- PROPULSION (2) --- (None) > --- UTILITY (5) ------ Large Storage Unit Kinecellerator > --- WEAPON (2) ------- (None) > --- INVENTORY (15) --- Light Ion Engine Improved Ion Engine Light Nuclear Core Improved Heat Sink Compact Battery (200) Signal Interpreter Core Shielding Improved Weapon Shielding Particle Gun Heavy Particle Cannon Slug Cannon Peak State ------------ > --- POWER ------------ Improved Ion Engine Light Nuclear Core > --- PROPULSION ------- Carbon-fiber Leg Titanium Leg > --- UTILITY ---------- Large Storage Unit Kinecellerator Improved Medium Armor Plating Improved Medium Armor Plating Medium Reactive Plating > --- WEAPON ----------- Slug Cannon Improved Grenade Launcher > --- INVENTORY -------- Light Nuclear Core Aluminum Leg Aluminum Leg Improved Heat Sink Compact Battery Signal Interpreter Core Shielding Improved Weapon Shielding Particle Gun Particle Cannon Heavy Particle Cannon Improved Grenade Launcher Improved Grenade Launcher Improved Grenade Launcher [Rating: 38] Favorites ----------- Power Light Ion Engine Engine Light Ion Engine Power Core Light Nuclear Core Propulsion Titanium Leg Treads Improved Treads Leg Titanium Leg Flight Unit Improved Flight Unit Utility Large Storage Unit Device Weight Redist. System Storage Large Storage Unit Processor Signal Interpreter Protection Improved Medium Armor Plating Weapon Improved Grenade Launcher Energy Gun Small Laser Energy Cannon Heavy Particle Cannon Ballistic Gun Heavy Assault Rifle Ballistic Cannon Slug Cannon Launcher Improved Grenade Launcher Build | -11 -10 -10 -9 -8 -8 -8 ------- Run | Yrd Mat Min Mat Mat Gar Mat Slots Evolved 4 | . . . 2 2 . . Power 1 | . . . . 1 . . Propulsion . | . . . . . . . Utility 3 | . . . 2 1 . . Weapon . | . . . . . . . Parts Attached 121 | 6 8 3 32 15 40 17 Power 19 | 1 2 1 3 3 7 2 Engine 14 | 1 2 1 3 3 3 1 Core 5 | . . . . . 4 1 Reactor . | . . . . . . . Propulsion 23 | 2 2 . 4 4 6 5 Treads 5 | 2 . . 3 . . . Leg 15 | . 2 . . 3 6 4 Wheel . | . . . . . . . Hover . | . . . . . . . Flight 3 | . . . 1 1 . 1 Utility 28 | 1 2 1 7 4 10 3 Device 7 | . . . 2 2 2 1 Storage 9 | 1 . 1 4 1 2 . Processor 3 | . 2 . . . 1 . Hackware . | . . . . . . . Protection 9 | . . . 1 1 5 2 Artifact . | . . . . . . . Weapon 51 | 2 2 1 18 4 17 7 Energy Gun 18 | 2 2 . 11 . 3 . Energy Cannon 4 | . . . . . 2 2 Ballistic Gun 4 | . . . 1 2 1 . Ballistic Cannon 10 | . . 1 4 . 4 1 Launcher 15 | . . . 2 2 7 4 Special Weapon . | . . . . . . . Impact Weapon . | . . . . . . . Slashing Weapon . | . . . . . . . Piercing Weapon . | . . . . . . . Special Melee Weapon . | . . . . . . . Unidentified Prototypes 1 | . . . 1 . . . Parts Lost 35 | . 3 1 3 . 13 15 Power 9 | . 1 . 2 . 5 1 Propulsion 9 | . 1 . 1 . 2 5 Utility 6 | . . . . . 2 4 Weapon 11 | . 1 1 . . 4 5 Highest Loss Streak 9 | . 3 1 2 . 9 6 To Critical Strikes 1 | . . . 1 . . . Average Slot Usage (%) 93 | . 90 100 91 96 94 89 Engine 9 | . 14 14 10 18 6 3 Core 5 | . . . . . 7 13 Treads 5 | . 23 . 14 . . . Leg 13 | . 3 28 4 12 17 16 Device 5 | . . . 12 12 4 3 Storage 11 | . 14 14 12 13 11 9 Processor 6 | . 6 14 11 1 6 5 Protection 13 | . . . 1 18 22 20 Energy Gun 9 | . 27 21 13 1 5 5 Ballistic Gun 1 | . . . 3 8 . . Ballistic Cannon 2 | . . 6 3 . 1 2 Launcher 5 | . . . . 7 8 7 Peak Build Rating 38 | 6 8 10 18 29 35 38 Average Rating 22 | 4 6 8 14 22 29 30 On Entrance 14 | . 6 7 10 16 29 34 Naked Turns . | . . . . . . . Heaviest Build 83 | 11 12 31 65 46 77 83 Greatest Support 52 | 40 40 20 52 40 40 32 Greatest Overweight (x) 13 | . 1 1 3 3 3 13 Average Overweight (x) 1 | . . . . . 1 2 Largest Inventory Capacity 15 | 8 8 15 15 15 15 15 Average Capacity 14 | 6 8 14 15 15 15 15 Most Carried 15 | 4 8 8 15 15 15 15 Average Carried 12 | 1 6 7 12 14 14 14 Final Capacity 15 | 8 8 15 15 15 15 15 Final Carried 15 | 4 6 7 15 15 15 11 Class Distribution -------------------- 51% | Mutant 48% | Scavenger-Mutant Dominant Class ---------------- Mutant | -10/Materials Mutant | -10/Mines Mutant | -9/Materials Mutant | -8/Materials Scavenger-Mutant | -8/Garrison Scavenger-Mutant | -8/Materials Resources | -11 -10 -10 -9 -8 -8 -8 ----------- Run | Yrd Mat Min Mat Mat Gar Mat Matter Collected 2298 | 126 205 51 397 217 846 456 Remotely . | . . . . . . . Salvage Created 2624 | . 373 65 292 300 805 789 Parts 173 | . 28 1 36 16 49 43 Haulers Intercepted 1 | . . . . . . 1 Recyclers Shooed 2 | . . . . . . 2 Parts Field Recycled . | . . . . . . . Retrieved Matter . | . . . . . . . Parts Self-Destructed . | . . . . . . . Prevented . | . . . . . . . Kills | -11 -10 -10 -9 -8 -8 -8 ------- Run | Yrd Mat Min Mat Mat Gar Mat Combat Hostiles Destroyed 79 | . 9 2 14 6 29 19 Guns 16 | . 9 . 3 . 3 1 Cannons 12 | . . 2 2 . 6 2 AOE 51 | . . . 9 6 20 16 Classes Destroyed 11 | . 3 . 3 1 1 3 Worker 7 | . . . 1 1 . 5 Builder 2 | . . . 1 . . 1 Hauler 1 | . . . . . . 1 Recycler 5 | . . . . 1 . 4 Watcher 10 | . 2 . 3 1 . 4 Swarmer 25 | . 3 . 9 . 8 5 Grunt 40 | . 6 2 1 4 17 10 Brawler 1 | . . . . . . 1 Duelist 1 | . . . . . 1 . Protector 1 | . . . . . . 1 Sentry 11 | . . . 4 2 3 2 Best Kill Streak 7 | . 6 2 6 4 4 7 Combat Bots Only 6 | . 6 2 5 3 4 6 Max Kills in Single Turn 4 | . 1 1 4 1 4 3 Gunslinging . | . . . . . . . Exploded 4 | . . . 4 1 4 3 Melee . | . . . . . . . Uniques/NPCs Destroyed . | . . . . . . . Combat | -11 -10 -10 -9 -8 -8 -8 -------- Run | Yrd Mat Min Mat Mat Gar Mat Hostile Shots Fired 461 | . 90 13 82 18 147 111 Missed 122 | . 30 3 14 6 40 29 Damage Taken 5903 | . 696 132 873 230 2047 1925 Core 887 | . 173 27 111 . 213 363 Absorbed by Shields . | . . . . . . . Redirected to Shielding 79 | . . . . . 5 74 Ignored by Resistances 95 | . . . . . 5 90 Core Remaining (%) 64 | 100 . 20 72 . . . Volleys Fired 175 | . 34 9 32 11 39 50 Largest 2 | . 2 2 2 2 2 2 Hottest 140 | . 90 90 104 59 140 133 Shots Fired 316 | . 68 18 65 22 70 73 Gun 170 | . 68 12 42 11 21 16 Cannon 68 | . . 6 19 . 28 15 Launcher 78 | . . . 4 11 21 42 Special . | . . . . . . . Kinetic 64 | . . 6 27 11 18 2 Thermal 164 | . 58 12 34 . 31 29 Explosive 78 | . . . 4 11 21 42 Electromagnetic 10 | . 10 . . . . . Robot Hit Streak 10 | . 9 5 10 4 10 6 Robot Miss Streak 6 | . 6 3 6 3 3 4 Penetration Max 1 | . . 1 . . . . Secondary Targets . | . . . . . . . Shots Hit Robots 188 | . 44 10 38 11 45 40 Core Hits 174 | . 18 3 24 16 54 59 Critical Kills 1 | . . . . . . 1 Critical Parts Destroyed 3 | . . . 2 . . 1 Critical Strikes 7 | . 1 . 3 . 1 2 Burn 2 | . 1 . 1 . . . Destroy 4 | . . . 2 . . 2 Blast 1 | . . . . . 1 . Melee Attacks . | . . . . . . . Impact . | . . . . . . . Slashing . | . . . . . . . Piercing . | . . . . . . . Sneak Attacks . | . . . . . . . Combat Hostiles . | . . . . . . . Follow-up Attacks . | . . . . . . . Damage Inflicted 8583 | . 625 197 1399 614 2530 3218 Guns 1344 | . 558 81 364 44 203 94 Cannons 1374 | . . 113 395 . 592 274 Explosions 5827 | . 63 . 639 555 1735 2835 Melee . | . . . . . . . Ramming 38 | . 4 3 1 15 . 15 Kinetic 996 | . . 113 440 44 349 50 Thermal 1762 | . 539 81 319 . 446 377 Explosive 5705 | . . . 639 555 1735 2776 Electromagnetic 82 | . 82 . . . . . Impact . | . . . . . . . Slashing . | . . . . . . . Piercing . | . . . . . . . Highest Corruption 2 | . . . 2 . . . Average Corruption 1 | . . . 1 . . . Corruption Purged . | . . . . . . . Corruption Blocked . | . . . . . . . Effects 8 | . . . 8 . . . Message Errors 2 | . . . 2 . . . Matter Fused 3 | . . . 3 . . . Parts Fused 1 | . . . 1 . . . Data Loss (minor) 1 | . . . 1 . . . Misfires 1 | . . . 1 . . . Overload Shots . | . . . . . . . Overflow Damage 212 | . . . 38 16 62 96 Projectiles 1 | . . . . . . 1 Explosions 211 | . . . 38 16 62 95 Melee . | . . . . . . . Knockbacks 7 | . . 2 . . 4 1 Impact 1 | . . . . . . 1 Kinetic 5 | . . 2 . . 3 . Secondary 1 | . . . . . 1 . Self-Inflicted Damage 1032 | . . . 78 49 259 646 Shots 27 | . . . 2 1 6 18 Rammed 2 | . 1 . 1 . . . Targets Rammed 8 | . 1 1 1 1 . 4 Kicked 6 | . . 1 . 1 . 4 Crushed . | . . . . . . . Highest Temperature 496 | . 370 251 210 68 343 496 Average Temperature 104 | . 112 137 73 20 105 117 Received Heat Transfer 2121 | . 303 75 285 99 909 450 Effects 15 | . . 1 . . 3 11 Shutdowns 5 | . . . . . . 5 Energy Bleed 2 | . . 1 . . 1 . Interference 4 | . . . . . 2 2 Short Circuit 1 | . . . . . . 1 Damage (minor) 1 | . . . . . . 1 Damage (major) 2 | . . . . . . 2 Siege Activations . | . . . . . . . Robots Corrupted . | . . . . . . . Combat Hostiles . | . . . . . . . Parts Fried . | . . . . . . . Impact Corruptions . | . . . . . . . Robots Melted . | . . . . . . . Combat Hostiles . | . . . . . . . Parts Melted 1 | . 1 . . . . . Heat Transferred 3809 | . 1462 199 831 . 638 679 Parts Sabotaged . | . . . . . . . Parts Stolen . | . . . . . . . Parts Stripped . | . . . . . . . Power Chain Reactions 1 | . 1 . . . . . Alert | -11 -10 -10 -9 -8 -8 -8 ------- Run | Yrd Mat Min Mat Mat Gar Mat Peak Influence 1172 | . 199 78 363 255 1172 1041 Initial 571 | . . 34 29 104 142 571 Average 398 | . 66 52 198 153 618 695 Maximum Alert Level 4 | . . . 1 1 4 3 Low Security (%) 34 | 100 100 100 33 68 7 . Level 1 20 | . . . 66 31 13 . Level 2 25 | . . . . . 44 61 Level 3 17 | . . . . . 32 38 Level 4 . | . . . . . 2 . Level 5 . | . . . . . . . High Security . | . . . . . . . Max Security . | . . . . . . . Squads Dispatched 10 | . 3 . 1 2 . 4 Investigation 4 | . 2 . 1 1 . . Extermination . | . . . . . . . Reinforcement 5 | . 1 . . 1 . 3 Assault 1 | . . . . . . 1 Garrison . | . . . . . . . Intercept . | . . . . . . . Searches Triggered . | . . . . . . . Construction Impeded 2 | . . . . . . 2 Haulers Reinforced . | . . . . . . . Active Scanning Responses . | . . . . . . . Cargo Convoy Interrupts . | . . . . . . . Stealth | -11 -10 -10 -9 -8 -8 -8 --------- Run | Yrd Mat Min Mat Mat Gar Mat Distress Signals 4 | . 1 . 2 . . 1 Communications Jammed . | . . . . . . . Distress Signals . | . . . . . . . Times Spotted 115 | . 18 2 24 10 28 33 Peak Tracking Total 7 | . 6 2 7 2 6 5 Tactical Retreats 5 | . 1 . 3 . 1 . Traps | -11 -10 -10 -9 -8 -8 -8 ------- Run | Yrd Mat Min Mat Mat Gar Mat Traps Triggered 10 | . 2 . 1 1 6 . Indirectly . | . . . . . . . Trap Hack Attempts . | . . . . . . . Triggered . | . . . . . . . Disarmed . | . . . . . . . Reprogrammed . | . . . . . . . Reused . | . . . . . . . Traps Extracted . | . . . . . . . Installed . | . . . . . . . Triggered . | . . . . . . . Machines | -11 -10 -10 -9 -8 -8 -8 ---------- Run | Yrd Mat Min Mat Mat Gar Mat Machines Disabled 15 | . 1 . 3 2 2 7 Max in Single Turn 2 | . 1 . 1 1 1 2 Garrison Relay 1 | . . . . . 1 . Machines Repaired . | . . . . . . . Machines Dismantled . | . . . . . . . Machines Sabotaged . | . . . . . . . Overloaded Fab Kills . | . . . . . . . Hacking | -11 -10 -10 -9 -8 -8 -8 --------- Run | Yrd Mat Min Mat Mat Gar Mat Machines Accessed 11 | . 2 . 2 4 2 1 Terminals 8 | . 1 . 1 3 2 1 Fabricators . | . . . . . . . Repair Stations 1 | . 1 . . . . . Recycling Units . | . . . . . . . Scanalyzers 1 | . . . 1 . . . Garrison Access 1 | . . . . 1 . . Total Hacks 25 | . 3 . 5 10 4 3 Successful 11 | . 1 . 4 3 1 2 Failed 14 | . 2 . 1 7 3 1 Catastrophic 2 | . . . . 2 . . Database Lockouts . | . . . . . . . Manual 5 | . 2 . . . 2 1 Terminals 18 | . 1 . 1 9 4 3 Fabricators . | . . . . . . . Repair Stations 2 | . 2 . . . . . Recycling Units . | . . . . . . . Scanalyzers 4 | . . . 4 . . . Garrison Access 1 | . . . . 1 . . Terminal Hacks 7 | . 1 . 1 2 1 2 Prototype ID Bank 1 | . . . . . . 1 Alert Level 1 | . . . . . . 1 Reinforcement Status 1 | . . . . 1 . . Registered Components 3 | . 1 . 1 1 . . Patrol Navigation 1 | . . . . . 1 . Fabricator Hacks . | . . . . . . . Repair Station Hacks . | . . . . . . . Recycling Unit Hacks . | . . . . . . . Scanalyzer 3 | . . . 3 . . . Insert Component 2 | . . . 2 . . . Analyze 1 | . . . 1 . . . Garrison Access Hacks 1 | . . . . 1 . . Unlock Access 1 | . . . . 1 . . Unauthorized Hacks . | . . . . . . . Terminals . | . . . . . . . Fabricators . | . . . . . . . Repair Stations . | . . . . . . . Recycling Units . | . . . . . . . Scanalyzers . | . . . . . . . Garrison Access . | . . . . . . . Data Cores Recovered . | . . . . . . . Used . | . . . . . . . Hacking Detections 9 | . 2 . 1 3 2 1 Full Trace Events 5 | . 1 . 1 2 . 1 Feedback Events 1 | . . . 1 . . . Corruption 1 | . . . 1 . . . Feedback Blocked . | . . . . . . . Robot Schematics Acquired . | . . . . . . . Robots Built . | . . . . . . . Authchips . | . . . . . . . Time . | . . . . . . . Total Robot Build Rating . | . . . . . . . Part Schematics Acquired 1 | . . . 1 . . . Parts Built . | . . . . . . . Authchips . | . . . . . . . Time . | . . . . . . . Total Part Build Rating . | . . . . . . . Parts Repaired . | . . . . . . . Time . | . . . . . . . Parts Recycled . | . . . . . . . Recycled Matter . | . . . . . . . Retrieved Matter . | . . . . . . . Retrieved Components . | . . . . . . . Parts Scanalyzed 1 | . . . 1 . . . Part Schematics Acquired 1 | . . . 1 . . . Parts Damaged . | . . . . . . . Bothacking | -11 -10 -10 -9 -8 -8 -8 ------------ Run | Yrd Mat Min Mat Mat Gar Mat Used RIF Installer . | . . . . . . . Robots Hacked . | . . . . . . . Non-combat . | . . . . . . . Combat . | . . . . . . . Robot Hacks Applied . | . . . . . . . Relay Couplers Released 5 | . . . . . 5 . Machine Destruction 5 | . . . . . 5 . Fabnet Peak Effective % . | . . . . . . . Robots Rewired . | . . . . . . . Allies Hacked . | . . . . . . . Hacks Repelled . | . . . . . . . Allies | -11 -10 -10 -9 -8 -8 -8 -------- Run | Yrd Mat Min Mat Mat Gar Mat Total Allies . | . . . . . . . Largest Group . | . . . . . . . Highest-Rated Group . | . . . . . . . Highest-Rated Ally . | . . . . . . . Total Orders . | . . . . . . . Ally Attacks . | . . . . . . . Total Damage . | . . . . . . . Kills . | . . . . . . . Allies Corrupted . | . . . . . . . Allies Melted . | . . . . . . . Intel | -11 -10 -10 -9 -8 -8 -8 ------- Run | Yrd Mat Min Mat Mat Gar Mat Robot Analysis Total . | . . . . . . . Derelict Logs Recovered 1 | . . 1 . . . . Drone Launches . | . . . . . . . Drone Recoveries . | . . . . . . . Exploration | -11 -10 -10 -9 -8 -8 -8 ------------- Run | Yrd Mat Min Mat Mat Gar Mat Turns Passed 5995 | 79 654 359 1097 682 2171 953 Spaces Moved 2501 | 47 344 167 477 359 808 299 Core 11 | 7 . . . . 2 2 Treads 580 | 40 292 . 248 . . . Legs 1707 | . 52 167 97 289 806 296 Wheels . | . . . . . . . Hover . | . . . . . . . Flight 203 | . . . 132 70 . 1 Fastest Speed 50 | 50 120 120 160 130 125 190 Average Speed 205 | 143 154 189 183 169 241 264 Slowest Speed 700 | 160 190 190 330 250 265 700 Overloaded Moves . | . . . . . . . Propulsion Burnouts . | . . . . . . . Robots Hopped . | . . . . . . . Cave-ins Triggered . | . . . . . . . Exploration Rate (%) 39 | 5 59 46 32 31 71 32 Regions Visited 6 Branch Regions 1 Pre-discovered Areas . | . . . . . . . Known Exits Taken 4 | . 1 1 1 1 . . Unknown Exits Taken 1 | 1 . . . . . . Scrap Searched . | . . . . . . . Spaces Dug 11 | . . . . 11 . . Terrain Destroyed 633 | . 1 4 30 81 200 317 Melee . | . . . . . . . Projectile 11 | . . 4 7 . . . AOE 622 | . 1 . 23 81 200 317 Terrain Rammed . | . . . . . . . Walls Destroyed . | . . . . . . . Machines Disabled . | . . . . . . . Actions | -11 -10 -10 -9 -8 -8 -8 --------- Run | Yrd Mat Min Mat Mat Gar Mat Total 3022 | 56 400 191 628 417 950 380 Wait 92 | . . 9 54 . 29 . Move 2494 | 46 343 166 476 358 806 299 Hop . | . . . . . . . Pick Up 65 | 4 9 2 20 15 9 6 Fast Attach 21 | 6 2 . 2 3 8 . Attach 26 | . 3 1 6 4 5 7 Detach 6 | . 1 . 3 2 . . Swap 74 | . 3 2 24 8 27 10 Drop 41 | . 4 1 10 15 7 4 Fire 175 | . 34 9 32 11 39 50 Melee . | . . . . . . . Ram . | . . . . . . . Kick 6 | . . 1 . 1 . 4 Crush 2 | . 1 . 1 . . . Escape Stasis 20 | . . . . . 20 . Rewire . | . . . . . . . Trap . | . . . . . . . Miscellaneous . | . . . . . . . Route ------- -11/Scrapyard -10/Materials -10/Mines -9/Materials (discovered 2 exits: *Mat / [*Min]) -8/Materials -8/Garrison (discovered 4 exits: *Mat x4) -8/Materials History --------- Turn | Location | Event 10 | -11/Scrapyard | Discovered new exit (range 15) 80 | -11/Scrapyard | Entered Materials 208 | -10/Materials | Discovered new exit (range 14) 309 | -10/Materials | Build established: Mutant 639 | -10/Materials | Core integrity fell below 50% 673 | -10/Materials | Lost 3 parts (1p1n1w) 727 | -10/Materials | Identified exit to Mines 734 | -10/Materials | Entered Mines 770 | -10/Mines | A weapon hastily lodged in a ceiling crevice suddenly fell to the ground 1080 | -10/Mines | Learned Materials emergency access door positions 1083 | -10/Mines | Discovered new exit (range 4) 1089 | -10/Mines | Identified exit to Materials 1093 | -10/Mines | Entered Materials 1093 | -9/Materials | Evolved 2 slots: Utility x2 1759 | -9/Materials | Discovered new exit (range 9) 2030 | -9/Materials | Discovered new exit (range 8) 2110 | -9/Materials | Build established: Scavenger-Mutant 2188 | -9/Materials | Identified exit to Materials 2190 | -9/Materials | Entered another Materials area 2190 | -8/Materials | Evolved 2 slots: Power x1, Utility x1 2666 | -8/Materials | Build established: Mutant 2870 | -8/Materials | Identified exit to Garrison 2872 | -8/Materials | Entered Garrison 2892 | -8/Garrison | Triggered checkpoint 2977 | -8/Garrison | Lost 9 parts (3p2n2u2w) 3140 | -8/Garrison | Triggered checkpoint 3224 | -8/Garrison | Triggered checkpoint 3329 | -8/Garrison | Discovered new exit (range 15) 3680 | -8/Garrison | Triggered checkpoint 3702 | -8/Garrison | Triggered checkpoint 3708 | -8/Garrison | Triggered checkpoint 3729 | -8/Garrison | Build established: Scavenger-Mutant 3934 | -8/Garrison | Triggered checkpoint 4031 | -8/Garrison | Discovered new exit (range 13) 4084 | -8/Garrison | Identified exit to Materials 4087 | -8/Garrison | Attempted to access garrison exit controls, blocked by remote lockdown 4284 | -8/Garrison | Triggered checkpoint 4677 | -8/Garrison | Discovered exit to Materials (range 8) 4794 | -8/Garrison | Triggered checkpoint 4948 | -8/Garrison | Triggered checkpoint 4980 | -8/Garrison | Discovered exit to Materials (range 5) 5043 | -8/Garrison | Entered Materials 5772 | -8/Materials | Core integrity fell below 50% 5843 | -8/Materials | First assault squad dispatched 5857 | -8/Materials | Lost 6 parts (2n3u1w) 5984 | -8/Materials | Core integrity fell below 20% 5996 | -8/Materials | Destroyed by L-31 Rogue with Katana Last Messages --------------- K-01 Serf collects debris. The unstable cave ceiling collapses. K-01 Serf collects debris. Aluminum Leg destroyed. The unstable cave ceiling collapses. K-01 Serf collects debris. Acquired Cesium-ion Thruster. Imp. Grenade Launcher destroyed. K-01 Serf collects debris. Cesium-ion Thruster destroyed. Matter Filter disabled. Knocked back. Imp. Grenade Launcher destroyed. B-36 Bruiser destroyed. The unstable cave ceiling collapses. K-01 Serf collects debris. The unstable cave ceiling collapses. K-01 Serf collects debris. R-06 Scavenger collects Imp. Heat Sink. Particle Cannon destroyed. Map ----- +----------------------------------------------------+ | # # #""" ##???????????? | | # #" #####???????? | | # # # # #######?? | | / =[% + / # | | # % %! # """ ??? | | # # """ ? ? | | # # # * """ !# | | ###### ## # [ # | | ############# * """ # | | = " "] + """ # | | ############# " " ! [ # """???? | | #???????????# ##" ### #? ???? | | ????????????# ## ## # #######??? | | ????????????# # k r # #???? | | ????????????# ## # ### #???? | | ???????????? [ = ## #???? | | ???????????##### =# % #???? | | ???????????????# # #???? | | ???????????????# # # #k #???? | | ???????????????????# #???? | | ????????????????????#k # ##???? | | ??????????????????### #????? | | ??????????????????# #????? | | ??????????????????# # ########????? | | ??????????????????# l% ! #??????????? | | ??????????????????# @ #??????????? | | ??????????????????# #??????????? | | ??????????????????### " #??????????? | | ????????????????????# """" "" #??????????? | | ????????????????????# """"""" #??????????? | | ????????????????????# """"""" #??????????? | | ????????????????????# #??????????? | | ????????????????????#####+#####??????????? | | ?????????????????????????????????????????? | | ?????????????????????????????????????????? | | ?????????????????????????????????????????? | | ?????????????????????????????????????????? | | ?????????????????????????????????????????? | | ?????????????????????????????????????????? | | ?????????????????????????????????????????? | | ?????????????????????????????????????????? | | ?????????????????????????????????????????? | | ?????????????????????????????????????????? | | | | | | | | | | | | | | | +----------------------------------------------------+ Best States ------------- Heat Dissipation 45 Energy Generation 23 Energy Capacity 465 Matter Stores 300 Matter Capacity 300 Sight Range 18 Terrain Scan Density 10 Additional Mass Support 6 Armor Coverage 675 Resistance: KI 30 Core Shielding 20 Weapon Shielding 66 Evasion (%) 55 Recoil Reduction 2 Kinecelleration 30 Item Schematics ----------------- Grenade Launcher | -9/Materials | Scanalyzed Robot Schematics ------------------ None Fabricated ------------ Nothing Alien Tech Used ----------------- None Achievements -------------- Dramatic Entrance Challenges ------------ None Game ------ Seed MassHoverTrident Manual? 0 Play Time 00:49:24 Cumulative 11.1 hours Start 2024.11.06 @ 18:48:03 End 2024.11.06 @ 19:37:33 Sessions 1 Manual Loads 0 Difficulty Rogue Special Mode None Game No. 17 Rogue 17 Adventurer 0 Explorer 0 Win Type - Total 0 Types 0/0/0/0/0/0/0/0/0 Lore% 8 Gallery% 14 Achievement% 14 Wizard Run 0 Options --------- Layout 1 ASCII 0 Keyboard 1 Movement Numpad Keybinds 0 Fullscreen 2 Font 24/Smallcaps Map View 50x35 Zoom Use 0% Tactical HUD 0 Map Filters NONE Filters NONE Steam X RUN: 334a4ba7-9b82-4f2e-a80a-9ad15075f785